[Event "*** Titled Tuesday Blitz"]
[Site "Chess.com"]
[Date "2019.06.04"]
[Round "7"]
[White "MarianPetrov"]
[Black "Alliswell998"]
[Result "1-0"]
[WhiteElo "2620"]
[BlackElo "2427"]
[TimeControl "180+2"]
[EndTime "14:37:19 PDT"]
[Termination "MarianPetrov won by checkmate"]

1. e4 {[%clk 0:03:01.9]} 1... c5 {[%clk 0:02:57.3]} 2. c3 {[%clk 0:03:01.3]}
2... d5 {[%clk 0:02:58]} 3. exd5 {[%clk 0:03:02.3]} 3... Nf6 {[%clk 0:02:58.3]}
4. Bb5+ {[%clk 0:02:55.4]} 4... Nbd7 {[%clk 0:02:57.8]} 5. c4 {[%clk 0:02:55.6]}
5... a6 {[%clk 0:02:56.4]} 6. Bxd7+ {[%clk 0:02:55.8]} 6... Bxd7 {[%clk
0:02:55.3]} 7. d4 {[%clk 0:02:56]} 7... cxd4 {[%clk 0:02:41.9]} 8. Qxd4 {[%clk
0:02:56.5]} 8... e6 {[%clk 0:02:43.5]} 9. Nf3 {[%clk 0:02:53.4]} 9... exd5
{[%clk 0:02:41.2]} 10. cxd5 {[%clk 0:02:54.4]} 10... Bd6 {[%clk 0:02:39.2]} 11.
Qe3+ {[%clk 0:02:48.9]} 11... Qe7 {[%clk 0:02:17]} 12. Qxe7+ {[%clk 0:02:46.3]}
12... Kxe7 {[%clk 0:02:18.2]} 13. Nc3 {[%clk 0:02:46.6]} 13... Rhe8 {[%clk
0:02:13.4]} 14. O-O {[%clk 0:02:45.9]} 14... b5 {[%clk 0:02:14.2]} 15. Bg5
{[%clk 0:02:44.7]} 15... Kf8 {[%clk 0:02:10]} 16. Bxf6 {[%clk 0:02:45.5]} 16...
gxf6 {[%clk 0:02:11.9]} 17. Rfe1 {[%clk 0:02:36.9]} 17... Rad8 {[%clk
0:02:05.2]} 18. a3 {[%clk 0:02:30.3]} 18... Bg4 {[%clk 0:02:01.3]} 19. Nd4
{[%clk 0:02:27.2]} 19... Be5 {[%clk 0:01:56.4]} 20. Nc6 {[%clk 0:02:27.7]} 20...
Rd6 {[%clk 0:01:11]} 21. Nxe5 {[%clk 0:02:07.6]} 21... fxe5 {[%clk 0:01:11.1]}
22. Ne4 {[%clk 0:02:05.9]} 22... Rg6 {[%clk 0:01:05.2]} 23. Kf1 {[%clk
0:01:47.2]} 23... f5 {[%clk 0:01:05.6]} 24. Nc5 {[%clk 0:01:41.3]} 24... Rd6
{[%clk 0:01:00.5]} 25. Ne6+ {[%clk 0:01:36.7]} 25... Kf7 {[%clk 0:00:59.9]} 26.
f3 {[%clk 0:01:33.8]} 26... Bh5 {[%clk 0:00:59.9]} 27. Rxe5 {[%clk 0:01:34.4]}
27... Kf6 {[%clk 0:01:01.4]} 28. Rae1 {[%clk 0:01:32.3]} 28... Bf7 {[%clk
0:01:01.8]} 29. f4 {[%clk 0:01:21]} 29... a5 {[%clk 0:00:58.5]} 30. Nc7 {[%clk
0:01:15.7]} 30... Rc8 {[%clk 0:00:52.5]} 31. Nxb5 {[%clk 0:01:09.2]} 31... Rxd5
{[%clk 0:00:52.6]} 32. Rxd5 {[%clk 0:01:03.6]} 32... Bxd5 {[%clk 0:00:54.5]} 33.
Nc3 {[%clk 0:01:03.7]} 33... Bc6 {[%clk 0:00:51]} 34. Re5 {[%clk 0:00:55]} 34...
Rb8 {[%clk 0:00:51.9]} 35. Rxa5 {[%clk 0:00:49]} 35... Ke6 {[%clk 0:00:28.5]}
36. b4 {[%clk 0:00:47.6]} 36... Kd6 {[%clk 0:00:28.3]} 37. Rxf5 {[%clk
0:00:45.8]} 37... Rd8 {[%clk 0:00:27.3]} 38. Rh5 {[%clk 0:00:37.6]} 38... Rd7
{[%clk 0:00:21.2]} 39. b5 {[%clk 0:00:34.3]} 39... Ba8 {[%clk 0:00:21.1]} 40. a4
{[%clk 0:00:32.4]} 40... Kc7 {[%clk 0:00:22.4]} 41. a5 {[%clk 0:00:31.7]} 41...
Rd2 {[%clk 0:00:22.6]} 42. Rxh7+ {[%clk 0:00:30.5]} 42... Kb8 {[%clk 0:00:23.3]}
43. Rh8+ {[%clk 0:00:25.5]} 43... Ka7 {[%clk 0:00:23.8]} 44. b6+ {[%clk
0:00:25.8]} 44... Kb7 {[%clk 0:00:24.6]} 45. a6+ {[%clk 0:00:26.3]} 45... Kxa6
{[%clk 0:00:26]} 46. Rxa8+ {[%clk 0:00:26.2]} 46... Kxb6 {[%clk 0:00:27.9]} 47.
Ra2 {[%clk 0:00:24.1]} 47... Rd3 {[%clk 0:00:26.9]} 48. Rc2 {[%clk 0:00:21]}
48... Kc5 {[%clk 0:00:26.9]} 49. Ke2 {[%clk 0:00:20.8]} 49... Rd8 {[%clk
0:00:23.9]} 50. Ne4+ {[%clk 0:00:20.6]} 50... Kb4 {[%clk 0:00:23.1]} 51. f5
{[%clk 0:00:21.4]} 51... Rh8 {[%clk 0:00:23.4]} 52. f6 {[%clk 0:00:21.1]} 52...
Rxh2 {[%clk 0:00:23.6]} 53. Kf3 {[%clk 0:00:22.1]} 53... Rh5 {[%clk 0:00:23.8]}
54. g4 {[%clk 0:00:22]} 54... Rh3+ {[%clk 0:00:22.9]} 55. Kf4 {[%clk 0:00:22.5]}
55... Rh7 {[%clk 0:00:24.8]} 56. g5 {[%clk 0:00:23]} 56... Kb3 {[%clk
0:00:26.7]} 57. Rc8 {[%clk 0:00:22.2]} 57... Rh1 {[%clk 0:00:28.2]} 58. g6
{[%clk 0:00:20.2]} 58... Rf1+ {[%clk 0:00:28.7]} 59. Ke5 {[%clk 0:00:21.3]}
59... Rh1 {[%clk 0:00:28.8]} 60. f7 {[%clk 0:00:21.6]} 60... Rh5+ {[%clk
0:00:30.7]} 61. Kf6 {[%clk 0:00:22.5]} 61... Rh1 {[%clk 0:00:32]} 62. f8=Q
{[%clk 0:00:21.2]} 62... Rf1+ {[%clk 0:00:33.9]} 63. Ke5 {[%clk 0:00:22]} 63...
Re1 {[%clk 0:00:35.7]} 64. Rb8+ {[%clk 0:00:18]} 64... Kc2 {[%clk 0:00:37.6]}
65. Qc5+ {[%clk 0:00:18]} 65... Kd1 {[%clk 0:00:39.5]} 66. Rb1+ {[%clk
0:00:16.4]} 66... Ke2 {[%clk 0:00:41.4]} 67. Qf2+ {[%clk 0:00:15.4]} 67... Kd3
{[%clk 0:00:42.5]} 68. Rxe1 {[%clk 0:00:13.1]} 68... Kc4 {[%clk 0:00:44.4]} 69.
Qd4+ {[%clk 0:00:13.3]} 69... Kb5 {[%clk 0:00:45.5]} 70. Rb1+ {[%clk 0:00:12.8]}
70... Ka6 {[%clk 0:00:47.4]} 71. Qa1# {[%clk 0:00:12.7]} 1-0

[Event "*** Titled Tuesday Blitz"]
[Site "Chess.com"]
[Date "2019.06.04"]
[Round "7"]
[White "LastHeroJr"]
[Black "saraswathii"]
[Result "1-0"]
[WhiteElo "2521"]
[BlackElo "2311"]
[TimeControl "180+2"]
[EndTime "14:37:19 PDT"]
[Termination "LastHeroJr won by resignation"]

1. e4 {[%clk 0:03:01.2]} 1... c5 {[%clk 0:03:00.4]} 2. Nf3 {[%clk 0:03:02.4]}
2... e6 {[%clk 0:03:01.4]} 3. d4 {[%clk 0:03:03.4]} 3... cxd4 {[%clk 0:03:03.3]}
4. Nxd4 {[%clk 0:03:05]} 4... Nf6 {[%clk 0:03:02.8]} 5. Nc3 {[%clk 0:03:05.6]}
5... Nc6 {[%clk 0:03:02.8]} 6. Ndb5 {[%clk 0:03:04.3]} 6... Bb4 {[%clk
0:03:02.2]} 7. a3 {[%clk 0:03:04.7]} 7... Bxc3+ {[%clk 0:03:00.1]} 8. Nxc3
{[%clk 0:03:06.6]} 8... d5 {[%clk 0:03:01.2]} 9. exd5 {[%clk 0:03:08.5]} 9...
exd5 {[%clk 0:03:01.8]} 10. Bd3 {[%clk 0:03:09.6]} 10... d4 {[%clk 0:03:02.1]}
11. Ne2 {[%clk 0:03:09.7]} 11... O-O {[%clk 0:02:58.6]} 12. O-O {[%clk
0:03:10.5]} 12... Qd5 {[%clk 0:02:56.6]} 13. b4 {[%clk 0:02:40.8]} 13... a6
{[%clk 0:02:55.3]} 14. Bb2 {[%clk 0:02:32.4]} 14... Rd8 {[%clk 0:02:44.9]} 15.
Qd2 {[%clk 0:02:30.5]} 15... Be6 {[%clk 0:02:34.4]} 16. Rfd1 {[%clk 0:02:15]}
16... Rd7 {[%clk 0:02:22.3]} 17. Nf4 {[%clk 0:02:05]} 17... Qd6 {[%clk
0:02:08.3]} 18. Nxe6 {[%clk 0:01:53.9]} 18... fxe6 {[%clk 0:02:07]} 19. c3
{[%clk 0:01:41.2]} 19... Rad8 {[%clk 0:01:17.9]} 20. cxd4 {[%clk 0:01:29.1]}
20... Nxd4 {[%clk 0:01:14.3]} 21. Qe3 {[%clk 0:00:44.2]} 21... e5 {[%clk
0:00:58]} 22. Kh1 {[%clk 0:00:32.6]} 22... Kh8 {[%clk 0:00:51.9]} 23. Bf1 {[%clk
0:00:27.1]} 23... Ng4 {[%clk 0:00:47.1]} 24. Qg3 {[%clk 0:00:27.1]} 24... Nf6
{[%clk 0:00:40.7]} 25. Rd3 {[%clk 0:00:23.2]} 25... Qe7 {[%clk 0:00:31.3]} 26.
Rad1 {[%clk 0:00:22.7]} 26... Rf8 {[%clk 0:00:23.1]} 27. f3 {[%clk 0:00:18.3]}
27... Nc6 {[%clk 0:00:19.7]} 28. Rxd7 {[%clk 0:00:18]} 28... Nxd7 {[%clk
0:00:21.6]} 29. Bd3 {[%clk 0:00:18.8]} 29... Nf6 {[%clk 0:00:21.1]} 30. Qh3
{[%clk 0:00:19.9]} 30... g6 {[%clk 0:00:18.2]} 31. Re1 {[%clk 0:00:20.2]} 31...
Kg7 {[%clk 0:00:18.2]} 32. Qh4 {[%clk 0:00:19.8]} 32... Qd6 {[%clk 0:00:18.8]}
33. Bb1 {[%clk 0:00:19.9]} 33... h6 {[%clk 0:00:18.4]} 34. Qg3 {[%clk
0:00:20.9]} 34... g5 {[%clk 0:00:19.2]} 35. h4 {[%clk 0:00:21.7]} 35... Nh5
{[%clk 0:00:20.2]} 36. Qg4 {[%clk 0:00:23.2]} 36... Nf6 {[%clk 0:00:19.3]} 37.
Qf5 {[%clk 0:00:24.4]} 37... Ne7 {[%clk 0:00:19.7]} 38. Qxe5 {[%clk 0:00:23.8]}
38... Qxe5 {[%clk 0:00:21]} 39. Rxe5 {[%clk 0:00:25.5]} 39... Nc6 {[%clk
0:00:22.1]} 40. Rc5 {[%clk 0:00:25.5]} 40... gxh4 {[%clk 0:00:21.6]} 41. b5
{[%clk 0:00:26.8]} 41... axb5 {[%clk 0:00:22.1]} 42. Rxb5 {[%clk 0:00:28.7]}
42... Rf7 {[%clk 0:00:23.3]} 43. Kh2 {[%clk 0:00:30.1]} 43... Nd8 {[%clk
0:00:19.4]} 44. Kh3 {[%clk 0:00:30.8]} 44... Kf8 {[%clk 0:00:18.8]} 45. Rf5
{[%clk 0:00:27]} 45... Nd7 {[%clk 0:00:16.8]} 46. Kxh4 {[%clk 0:00:24.6]} 46...
Rxf5 {[%clk 0:00:17.1]} 47. Bxf5 {[%clk 0:00:26.5]} 47... Nc5 {[%clk 0:00:18.2]}
48. Bc2 {[%clk 0:00:28]} 48... Nde6 {[%clk 0:00:18.4]} 49. Kg4 {[%clk
0:00:27.9]} 49... Nc7 {[%clk 0:00:14.5]} 50. Kh5 {[%clk 0:00:27.3]} 50... N5e6
{[%clk 0:00:15]} 51. Kxh6 {[%clk 0:00:27.3]} 51... Nb5 {[%clk 0:00:14.9]} 52.
Bc1 {[%clk 0:00:23.7]} 52... Ned4 {[%clk 0:00:13.9]} 53. Bd3 {[%clk 0:00:23.6]}
53... Nd6 {[%clk 0:00:14.1]} 54. Kg5 {[%clk 0:00:22.2]} 54... Kf7 {[%clk
0:00:12.9]} 55. Kf4 {[%clk 0:00:23.3]} 55... Nc8 {[%clk 0:00:11.4]} 56. Ke4
{[%clk 0:00:22.4]} 56... Nc6 {[%clk 0:00:12.3]} 57. Bb2 {[%clk 0:00:21.8]} 57...
Nd6+ {[%clk 0:00:12.7]} 58. Ke3 {[%clk 0:00:22.3]} 58... Ke6 {[%clk 0:00:13.1]}
59. g4 {[%clk 0:00:23.4]} 59... Nf7 {[%clk 0:00:12.6]} 60. f4 {[%clk 0:00:24.3]}
60... Nd6 {[%clk 0:00:13.4]} 61. f5+ {[%clk 0:00:25]} 61... Kd5 {[%clk
0:00:14.6]} 62. g5 {[%clk 0:00:23.5]} 62... Ne5 {[%clk 0:00:15.4]} 63. Bxe5
{[%clk 0:00:24.7]} 63... Kxe5 {[%clk 0:00:16.2]} 64. f6 {[%clk 0:00:25.7]} 64...
Nf7 {[%clk 0:00:14.5]} 65. g6 {[%clk 0:00:24.8]} 65... Kxf6 {[%clk 0:00:15.5]}
66. gxf7 {[%clk 0:00:25.9]} 66... Kxf7 {[%clk 0:00:17.4]} 67. Kd4 {[%clk
0:00:27.4]} 67... Ke7 {[%clk 0:00:19.3]} 68. Kc5 {[%clk 0:00:28.8]} 68... Kd7
{[%clk 0:00:21]} 69. Kb6 {[%clk 0:00:28.9]} 69... Kc8 {[%clk 0:00:22.9]} 70. Ka7
{[%clk 0:00:27.4]} 70... Kc7 {[%clk 0:00:23.7]} 71. Be4 {[%clk 0:00:26.7]} 1-0

[Event "*** Titled Tuesday Blitz"]
[Site "Chess.com"]
[Date "2019.06.04"]
[Round "7"]
[White "Semen_Khanin"]
[Black "SaraciNderim"]
[Result "1/2-1/2"]
[WhiteElo "2720"]
[BlackElo "2863"]
[TimeControl "180+2"]
[EndTime "14:37:24 PDT"]
[Termination "Game drawn by agreement"]

1. e4 {[%clk 0:03:01.9]} 1... e5 {[%clk 0:03:00.9]} 2. Nf3 {[%clk 0:03:02.8]}
2... Nc6 {[%clk 0:03:02.3]} 3. Bc4 {[%clk 0:03:04.4]} 3... Bc5 {[%clk
0:03:02.8]} 4. O-O {[%clk 0:03:04.5]} 4... Nf6 {[%clk 0:03:03.6]} 5. d3 {[%clk
0:03:06.1]} 5... O-O {[%clk 0:03:04.1]} 6. a4 {[%clk 0:03:05.4]} 6... a6 {[%clk
0:03:04.1]} 7. c3 {[%clk 0:03:05.8]} 7... d6 {[%clk 0:03:00.1]} 8. Bg5 {[%clk
0:03:06.9]} 8... h6 {[%clk 0:03:00.5]} 9. Bh4 {[%clk 0:03:08]} 9... Ba7 {[%clk
0:03:01.6]} 10. Nbd2 {[%clk 0:03:07.8]} 10... Be6 {[%clk 0:02:53.3]} 11. Re1
{[%clk 0:03:06.4]} 11... Re8 {[%clk 0:02:47.7]} 12. b4 {[%clk 0:03:05.8]} 12...
Nb8 {[%clk 0:02:37.6]} 13. Bxe6 {[%clk 0:03:02.1]} 13... Rxe6 {[%clk 0:02:37.8]}
14. d4 {[%clk 0:03:02.6]} 14... Nbd7 {[%clk 0:02:35.3]} 15. Nc4 {[%clk
0:02:37.1]} 15... exd4 {[%clk 0:01:40.6]} 16. Nxd4 {[%clk 0:02:36.1]} 16... Bxd4
{[%clk 0:01:26.9]} 17. Qxd4 {[%clk 0:02:36.5]} 17... Qe8 {[%clk 0:01:20.8]} 18.
f3 {[%clk 0:02:32.9]} 18... Ne5 {[%clk 0:00:56.7]} 19. Nxe5 {[%clk 0:02:29.5]}
19... dxe5 {[%clk 0:00:54.1]} 20. Qc4 {[%clk 0:02:28.9]} 20... Rc6 {[%clk
0:00:52.8]} 21. Qb3 {[%clk 0:02:29.5]} 21... Rd8 {[%clk 0:00:44.6]} 22. Rad1
{[%clk 0:02:28.9]} 22... Rdd6 {[%clk 0:00:26.9]} 23. b5 {[%clk 0:02:20.4]} 23...
Rxd1 {[%clk 0:00:20.2]} 24. Rxd1 {[%clk 0:02:20.5]} 24... Re6 {[%clk 0:00:16]}
25. Qc4 {[%clk 0:02:04.4]} 25... axb5 {[%clk 0:00:16.2]} 26. axb5 {[%clk
0:02:05.7]} 26... c6 {[%clk 0:00:15.4]} 27. Bxf6 {[%clk 0:02:00.8]} 27... Rxf6
{[%clk 0:00:15.9]} 28. b6 {[%clk 0:02:02]} 28... Kh7 {[%clk 0:00:16.4]} 29. Qd3
{[%clk 0:01:59.6]} 29... Qe7 {[%clk 0:00:15.9]} 30. Qd8 {[%clk 0:01:45.3]} 30...
Qc5+ {[%clk 0:00:15.2]} 31. Kh1 {[%clk 0:01:46.7]} 31... Qxc3 {[%clk 0:00:16.2]}
32. h4 {[%clk 0:01:46.1]} 32... Qc2 {[%clk 0:00:14.8]} 33. h5 {[%clk 0:01:33]}
33... Qf2 {[%clk 0:00:12]} 34. Qd2 {[%clk 0:01:28.6]} 34... Qh4+ {[%clk
0:00:12.4]} 35. Kg1 {[%clk 0:01:29.3]} 35... Qxh5 {[%clk 0:00:13.8]} 36. Qe3
{[%clk 0:01:25.5]} 36... Qg5 {[%clk 0:00:13.1]} 37. Qxg5 {[%clk 0:01:25.7]}
37... hxg5 {[%clk 0:00:15]} 38. Rd7 {[%clk 0:01:26.8]} 38... c5 {[%clk
0:00:14.6]} 39. Rxb7 {[%clk 0:01:28.3]} 39... Kg6 {[%clk 0:00:14.5]} 40. Kf2
{[%clk 0:01:22.4]} 40... g4 {[%clk 0:00:13.8]} 41. Ke3 {[%clk 0:01:21]} 41...
gxf3 {[%clk 0:00:15.2]} 42. gxf3 {[%clk 0:01:22.6]} 42... Rd6 {[%clk 0:00:16.8]}
43. Rb8 {[%clk 0:01:21.7]} 43... f6 {[%clk 0:00:17.4]} 44. b7 {[%clk 0:01:17.8]}
44... Rb6 {[%clk 0:00:17.9]} 45. Kf2 {[%clk 0:00:45.7]} 45... Rb3 {[%clk
0:00:17.6]} 46. Kg3 {[%clk 0:00:45.3]} 46... c4 {[%clk 0:00:16]} 47. Rc8 {[%clk
0:00:44.1]} 47... Rxb7 {[%clk 0:00:16.6]} 48. Rxc4 {[%clk 0:00:45.6]} 48... Rb1
{[%clk 0:00:18.1]} 49. Rc7 {[%clk 0:00:45.4]} 49... Kh6 {[%clk 0:00:14.1]} 50.
Rf7 {[%clk 0:00:44]} 50... Rb2 {[%clk 0:00:14]} 51. Ra7 {[%clk 0:00:43.3]} 51...
g6 {[%clk 0:00:14]} 52. Rf7 {[%clk 0:00:43.8]} 52... Kg5 {[%clk 0:00:15.2]} 53.
Ra7 {[%clk 0:00:41.6]} 53... Rb3 {[%clk 0:00:14.1]} 54. Ra5 {[%clk 0:00:40.6]}
54... Rc3 {[%clk 0:00:12.9]} 55. Rb5 {[%clk 0:00:41.6]} 55... Rc1 {[%clk
0:00:13.9]} 56. f4+ {[%clk 0:00:42.1]} 56... Kh5 {[%clk 0:00:09.5]} 57. fxe5
{[%clk 0:00:43.2]} 57... fxe5 {[%clk 0:00:09.1]} 58. Rxe5+ {[%clk 0:00:44.7]}
58... g5 {[%clk 0:00:10.5]} 59. Re8 {[%clk 0:00:46]} 59... Rc3+ {[%clk
0:00:11.6]} 60. Kg2 {[%clk 0:00:43]} 60... Kg4 {[%clk 0:00:13.5]} 61. Rf8 {[%clk
0:00:43.7]} 61... Re3 {[%clk 0:00:12.5]} 62. Rf2 {[%clk 0:00:43.7]} 62... Rxe4
{[%clk 0:00:13.1]} 63. Ra2 {[%clk 0:00:45.2]} 63... Kh4 {[%clk 0:00:13.3]} 64.
Rb2 {[%clk 0:00:45.9]} 64... Ra4 {[%clk 0:00:14.3]} 65. Rc2 {[%clk 0:00:46.8]}
65... g4 {[%clk 0:00:15.5]} 66. Rb2 {[%clk 0:00:47.8]} 66... Ra3 {[%clk
0:00:16.6]} 67. Rc2 {[%clk 0:00:48.5]} 67... Rg3+ {[%clk 0:00:18]} 68. Kh2
{[%clk 0:00:49.2]} 68... Rh3+ {[%clk 0:00:19.3]} 69. Kg2 {[%clk 0:00:50.6]}
69... Ra3 {[%clk 0:00:20.9]} 70. Rb2 {[%clk 0:00:51.2]} 70... Rc3 {[%clk
0:00:21.4]} 71. Ra2 {[%clk 0:00:52.1]} 71... Rg3+ {[%clk 0:00:19.1]} 72. Kh2
{[%clk 0:00:52.4]} 72... Rb3 {[%clk 0:00:18.9]} 73. Kg2 {[%clk 0:00:53.4]} 73...
Rb4 {[%clk 0:00:20.1]} 74. Rc2 {[%clk 0:00:53.2]} 1/2-1/2

[Event "*** Titled Tuesday Blitz"]
[Site "Chess.com"]
[Date "2019.06.04"]
[Round "7"]
[White "TBergh98"]
[Black "xberli"]
[Result "1-0"]
[WhiteElo "2409"]
[BlackElo "2468"]
[TimeControl "180+2"]
[EndTime "14:37:50 PDT"]
[Termination "TBergh98 won by resignation"]

1. d4 {[%clk 0:03:01.9]} 1... Nf6 {[%clk 0:03:00.2]} 2. Bg5 {[%clk 0:03:03.3]}
2... c5 {[%clk 0:02:59.9]} 3. Nc3 {[%clk 0:03:04]} 3... cxd4 {[%clk 0:03:00.6]}
4. Qxd4 {[%clk 0:03:05.9]} 4... Nc6 {[%clk 0:03:02.1]} 5. Qh4 {[%clk 0:03:07.3]}
5... d6 {[%clk 0:03:02.3]} 6. e4 {[%clk 0:03:08.4]} 6... Be6 {[%clk 0:02:59.2]}
7. O-O-O {[%clk 0:03:09.4]} 7... Qa5 {[%clk 0:02:58.1]} 8. a3 {[%clk 0:03:10.7]}
8... Rc8 {[%clk 0:02:58.3]} 9. f4 {[%clk 0:03:10.1]} 9... Nb4 {[%clk 0:02:46.3]}
10. axb4 {[%clk 0:03:01.2]} 10... Qa1+ {[%clk 0:02:46.8]} 11. Kd2 {[%clk
0:03:02.4]} 11... Qxb2 {[%clk 0:02:45.8]} 12. Bb5+ {[%clk 0:03:03.4]} 12... Nd7
{[%clk 0:02:39.4]} 13. Nge2 {[%clk 0:02:59.5]} 13... Qxb4 {[%clk 0:02:32.7]} 14.
Rb1 {[%clk 0:02:55]} 14... Qc5 {[%clk 0:02:31.1]} 15. f5 {[%clk 0:02:53.3]}
15... Bc4 {[%clk 0:02:24.2]} 16. Be3 {[%clk 0:02:52.6]} 16... Qc7 {[%clk
0:02:20.1]} 17. Bxc4 {[%clk 0:02:12.5]} 17... Qxc4 {[%clk 0:02:18]} 18. Rxb7
{[%clk 0:02:06.4]} 18... g6 {[%clk 0:02:17.2]} 19. Rhb1 {[%clk 0:02:02.8]} 19...
Bg7 {[%clk 0:02:17.1]} 20. R1b3 {[%clk 0:01:51.1]} 20... gxf5 {[%clk 0:02:08]}
21. Qg5 {[%clk 0:01:37.8]} 21... Bf6 {[%clk 0:01:58]} 22. Qxf5 {[%clk
0:01:38.6]} 22... e6 {[%clk 0:01:59]} 23. Qb5 {[%clk 0:01:23.6]} 23... Rc7
{[%clk 0:01:46.2]} 24. Qxc4 {[%clk 0:01:05.9]} 24... Rxc4 {[%clk 0:01:48.1]} 25.
Rxa7 {[%clk 0:01:06.4]} 25... Rc8 {[%clk 0:01:47.9]} 26. Rbb7 {[%clk 0:01:03.4]}
26... Ne5 {[%clk 0:01:46.4]} 27. Rc7 {[%clk 0:00:59.7]} 27... O-O {[%clk
0:01:45.4]} 28. Bd4 {[%clk 0:00:54.9]} 28... Bg5+ {[%clk 0:01:42.6]} 29. Ke1
{[%clk 0:00:53.5]} 29... Nc6 {[%clk 0:01:36.2]} 30. Rxc8 {[%clk 0:00:46.8]}
30... Rxc8 {[%clk 0:01:38.1]} 31. Ra4 {[%clk 0:00:41.8]} 31... Nxd4 {[%clk
0:01:37.5]} 32. Rxd4 {[%clk 0:00:43.7]} 32... Bf6 {[%clk 0:01:38.5]} 33. Rd3
{[%clk 0:00:44.9]} 33... Be5 {[%clk 0:01:39.5]} 34. h3 {[%clk 0:00:44.6]} 34...
h5 {[%clk 0:01:39.2]} 35. Kd2 {[%clk 0:00:45.5]} 35... h4 {[%clk 0:01:39.1]} 36.
Nd1 {[%clk 0:00:45.8]} 36... Rc4 {[%clk 0:01:37.5]} 37. Nec3 {[%clk 0:00:39.5]}
37... Kg7 {[%clk 0:01:36.5]} 38. Ne3 {[%clk 0:00:39]} 38... Rb4 {[%clk 0:01:25]}
39. Ng4 {[%clk 0:00:30.2]} 39... Bf4+ {[%clk 0:01:24.3]} 40. Kd1 {[%clk
0:00:31.5]} 40... Kg6 {[%clk 0:01:12.2]} 41. Rf3 {[%clk 0:00:28.6]} 41... Kg5
{[%clk 0:01:08.2]} 42. Ke2 {[%clk 0:00:20.9]} 42... Rd4 {[%clk 0:01:03]} 43. Nf2
{[%clk 0:00:19.7]} 43... Rd2+ {[%clk 0:01:01.6]} 44. Kf1 {[%clk 0:00:20]} 44...
Rxc2 {[%clk 0:01:02.7]} 45. Ne2 {[%clk 0:00:21.2]} 45... e5 {[%clk 0:01:00]} 46.
Nxf4 {[%clk 0:00:21.8]} 46... exf4 {[%clk 0:01:01.9]} 47. Nd3 {[%clk 0:00:23]}
47... Rc3 {[%clk 0:01:01.3]} 48. Ne1 {[%clk 0:00:21.4]} 48... Rc4 {[%clk
0:01:00.2]} 49. Nd3 {[%clk 0:00:19.1]} 49... Rxe4 {[%clk 0:01:00.8]} 50. Kf2
{[%clk 0:00:19.7]} 50... d5 {[%clk 0:00:56.4]} 51. Ne1 {[%clk 0:00:20.1]} 51...
Kf5 {[%clk 0:00:55.4]} 52. Rd3 {[%clk 0:00:21.2]} 52... Ke6 {[%clk 0:00:55.1]}
53. Nf3 {[%clk 0:00:22.1]} 53... Ra4 {[%clk 0:00:55.9]} 54. Nxh4 {[%clk
0:00:22.5]} 54... Ke5 {[%clk 0:00:54]} 55. Rd2 {[%clk 0:00:21.6]} 55... d4
{[%clk 0:00:54.5]} 56. Re2+ {[%clk 0:00:22.7]} 56... Kd5 {[%clk 0:00:55.9]} 57.
Nf3 {[%clk 0:00:23]} 57... Ra3 {[%clk 0:00:56.6]} 58. Rd2 {[%clk 0:00:24]} 58...
d3 {[%clk 0:00:56]} 59. Ng5 {[%clk 0:00:21.6]} 59... f5 {[%clk 0:00:55.5]} 60.
h4 {[%clk 0:00:21.5]} 60... Kd4 {[%clk 0:00:53.9]} 61. h5 {[%clk 0:00:22.6]}
61... Kc3 {[%clk 0:00:54.1]} 62. Nf3 {[%clk 0:00:23.6]} 62... Ra6 {[%clk
0:00:52.7]} 63. Rd1 {[%clk 0:00:24.2]} 63... Kc2 {[%clk 0:00:52.4]} 64. Rh1
{[%clk 0:00:23.9]} 64... Rh6 {[%clk 0:00:48.9]} 65. Rh4 {[%clk 0:00:22]} 65...
d2 {[%clk 0:00:48.8]} 66. Nxd2 {[%clk 0:00:22.5]} 66... Kxd2 {[%clk 0:00:50.7]}
67. Kf3 {[%clk 0:00:24.4]} 67... Ke1 {[%clk 0:00:49.6]} 68. Kxf4 {[%clk
0:00:25.2]} 68... Kf2 {[%clk 0:00:50.8]} 69. g3 {[%clk 0:00:24.5]} 69... Kg2
{[%clk 0:00:50.8]} 70. Kxf5 {[%clk 0:00:20.7]} 70... Kxg3 {[%clk 0:00:50.8]} 71.
Kg5 {[%clk 0:00:21.5]} 71... Ra6 {[%clk 0:00:49.3]} 72. Rf4 {[%clk 0:00:18.4]}
72... Ra5+ {[%clk 0:00:42.9]} 73. Rf5 {[%clk 0:00:18.9]} 73... Ra4 {[%clk
0:00:41.8]} 74. h6 {[%clk 0:00:18.4]} 74... Rg4+ {[%clk 0:00:42.7]} 75. Kf6
{[%clk 0:00:19.1]} 75... Rh4 {[%clk 0:00:43.6]} 76. Kg7 {[%clk 0:00:19.3]} 76...
Kg4 {[%clk 0:00:44.6]} 77. Rf6 {[%clk 0:00:19.8]} 77... Kg5 {[%clk 0:00:43.9]}
78. Rg6+ {[%clk 0:00:20.6]} 78... Kf5 {[%clk 0:00:45.1]} 79. h7 {[%clk
0:00:21.2]} 79... Rh1 {[%clk 0:00:43.2]} 80. Rg2 {[%clk 0:00:21.2]} 80... Rh3
{[%clk 0:00:41.3]} 81. h8=Q {[%clk 0:00:20.9]} 1-0